[Event "Titled Tuesday Blitz March 22 Late 2022"]
[White "Jacobson, Aaron"]
[Black "Sanchez, Robert"]
[WhiteFideId "2089912"]
[BlackFideId "2034360"]
[WhiteElo "2265"]
[BlackElo "2257"]
[Result "1-0"]
[Round "03"]
[TimeControl "180+1"]
[Date "2022.03.22"]
[WhiteClock "0:00:07"]
[BlackClock "0:00:21"]

1. e4 {[%clk 0:02:59]}  e6 {[%clk 0:03:00]} 2. d4 {[%clk 0:02:57]}  d5 {[%clk 0:03:00]} 3. Nd2 {[%clk 0:02:57]}  Nf6 {[%clk 0:03:00]} 4. e5 {[%clk 0:02:57]}  Nfd7 {[%clk 0:03:00]} 5. f4 {[%clk 0:02:58]}  c5 {[%clk 0:03:00]} 6. Ngf3 {[%clk 0:02:58]}  Nc6 {[%clk 0:03:00]} 7. Nb3 {[%clk 0:02:59]}  a5 {[%clk 0:02:57]} 8. a4 {[%clk 0:02:58]}  cxd4 {[%clk 0:02:55]} 9. Nbxd4 {[%clk 0:02:58]}  Nc5 {[%clk 0:02:49]} 10. Bb5 {[%clk 0:02:55]}  Bd7 {[%clk 0:02:48]} 11. O-O {[%clk 0:02:56]}  Be7 {[%clk 0:02:42]} 12. Be3 {[%clk 0:01:47]}  O-O {[%clk 0:02:40]} 13. Qe2 {[%clk 0:01:47]}  Nxd4 {[%clk 0:02:28]} 14. Nxd4 {[%clk 0:01:45]}  Bxb5 {[%clk 0:02:27]} 15. Nxb5 {[%clk 0:01:36]}  Ne4 {[%clk 0:02:27]} 16. f5 {[%clk 0:01:33]}  exf5 {[%clk 0:02:21]} 17. Rxf5 {[%clk 0:01:30]}  Rc8 {[%clk 0:01:54]} 18. c3 {[%clk 0:01:19]}  Qd7 {[%clk 0:01:38]} 19. Raf1 {[%clk 0:01:15]}  f6 {[%clk 0:01:38]} 20. exf6 {[%clk 0:01:08]}  Rxf6 {[%clk 0:01:29]} 21. Rxf6 {[%clk 0:01:00]}  Bxf6 {[%clk 0:01:29]} 22. Qh5 {[%clk 0:00:52]}  g6 {[%clk 0:01:21]} 23. Qf3 {[%clk 0:00:49]}  Bg7 {[%clk 0:01:13]} 24. Rd1 {[%clk 0:00:48]}  Re8 {[%clk 0:01:12]} 25. Bf4 {[%clk 0:00:43]}  Qf7 {[%clk 0:01:06]} 26. Bc7 {[%clk 0:00:23]}  Qe6 {[%clk 0:00:52]} 27. Bxa5 {[%clk 0:00:17]}  Qa6 {[%clk 0:00:46]} 28. Nc7 {[%clk 0:00:15]}  Qxa5 {[%clk 0:00:43]} 29. Nxe8 {[%clk 0:00:15]}  Qxa4 {[%clk 0:00:44]} 30. Nxg7 {[%clk 0:00:14]}  Kxg7 {[%clk 0:00:43]} 31. Rf1 {[%clk 0:00:13]}  Qe8 {[%clk 0:00:38]} 32. Qe3 {[%clk 0:00:11]}  Kg8 {[%clk 0:00:34]} 33. Qd4 {[%clk 0:00:11]}  Qb5 {[%clk 0:00:32]} 34. h3 {[%clk 0:00:07]}  h5 {[%clk 0:00:28]} 35. Qe5 {[%clk 0:00:06]}  Qd3 {[%clk 0:00:23]} 36. Qe6+ {[%clk 0:00:06]}  Kg7 {[%clk 0:00:22]} 37. Qe7+ {[%clk 0:00:06]}  Kh6 {[%clk 0:00:22]} 38. Qf8+ {[%clk 0:00:07]}  Kg5 {[%clk 0:00:21]} 39. Qf4# {[%clk 0:00:07]} 1-0


[Site "https://www.chess.com"]

[Event "Titled Tuesday Blitz March 22 Late 2022"]
[White "Jaracz, Pawel"]
[Black "Olsen, Filip Boe"]
[WhiteFideId "1102222"]
[BlackFideId "1440640"]
[WhiteElo "2729"]
[BlackElo "2522"]
[Result "1-0"]
[Round "03"]
[TimeControl "180+1"]
[Date "2022.03.22"]
[WhiteClock "0:00:38"]
[BlackClock "0:00:01"]

1. d4 {[%clk 0:03:00]}  Nf6 {[%clk 0:02:56]} 2. c4 {[%clk 0:03:00]}  c6 {[%clk 0:02:56]} 3. Nc3 {[%clk 0:02:58]}  d5 {[%clk 0:02:56]} 4. e3 {[%clk 0:02:59]}  Bf5 {[%clk 0:02:50]} 5. cxd5 {[%clk 0:02:57]}  cxd5 {[%clk 0:02:51]} 6. Qb3 {[%clk 0:02:56]}  Bc8 {[%clk 0:02:51]} 7. Nf3 {[%clk 0:02:52]}  e6 {[%clk 0:02:51]} 8. Bb5+ {[%clk 0:02:52]}  Nc6 {[%clk 0:02:44]} 9. Ne5 {[%clk 0:02:43]}  Bd7 {[%clk 0:02:44]} 10. Nxd7 {[%clk 0:02:40]}  Qxd7 {[%clk 0:02:43]} 11. Bd2 {[%clk 0:02:39]}  Bd6 {[%clk 0:02:35]} 12. Rc1 {[%clk 0:02:37]}  O-O {[%clk 0:02:28]} 13. Na4 {[%clk 0:02:36]}  Rfc8 {[%clk 0:02:28]} 14. O-O {[%clk 0:02:35]}  Qd8 {[%clk 0:02:11]} 15. Bxc6 {[%clk 0:02:34]}  bxc6 {[%clk 0:02:10]} 16. Qd3 {[%clk 0:02:32]}  Ne4 {[%clk 0:02:06]} 17. Rc2 {[%clk 0:02:15]}  c5 {[%clk 0:01:30]} 18. dxc5 {[%clk 0:02:09]}  Bxc5 {[%clk 0:01:28]} 19. Rfc1 {[%clk 0:01:55]}  Bd6 {[%clk 0:01:18]} 20. Be1 {[%clk 0:01:51]}  h6 {[%clk 0:01:07]} 21. f3 {[%clk 0:01:35]}  Nf6 {[%clk 0:01:01]} 22. Bh4 {[%clk 0:01:33]}  g5 {[%clk 0:00:29]} 23. Bf2 {[%clk 0:01:28]}  Rxc2 {[%clk 0:00:25]} 24. Qxc2 {[%clk 0:01:27]}  Qa5 {[%clk 0:00:25]} 25. Be1 {[%clk 0:01:21]}  Qb5 {[%clk 0:00:22]} 26. Qc6 {[%clk 0:01:18]}  Qxc6 {[%clk 0:00:21]} 27. Rxc6 {[%clk 0:01:18]}  Be5 {[%clk 0:00:21]} 28. b4 {[%clk 0:01:08]}  Rb8 {[%clk 0:00:21]} 29. Nc5 {[%clk 0:01:06]}  Bb2 {[%clk 0:00:17]} 30. Ra6 {[%clk 0:01:03]}  Ne8 {[%clk 0:00:14]} 31. Rxa7 {[%clk 0:00:58]}  Nd6 {[%clk 0:00:14]} 32. a4 {[%clk 0:00:51]}  Nc4 {[%clk 0:00:14]} 33. Kf2 {[%clk 0:00:46]}  Ba3 {[%clk 0:00:14]} 34. Nd3 {[%clk 0:00:45]}  Nb6 {[%clk 0:00:05]} 35. a5 {[%clk 0:00:44]}  Na4 {[%clk 0:00:05]} 36. a6 {[%clk 0:00:43]}  Kg7 {[%clk 0:00:03]} 37. Rb7 {[%clk 0:00:42]}  Ra8 {[%clk 0:00:02]} 38. a7 {[%clk 0:00:42]}  Kf6 {[%clk 0:00:03]} 39. b5 {[%clk 0:00:41]}  Nc5 {[%clk 0:00:01]} 40. Bc3+ {[%clk 0:00:39]}  Kg6 {[%clk 0:00:01]} 41. Nxc5 {[%clk 0:00:38]}  Bxc5 {[%clk 0:00:01]} 42. Bd4 {[%clk 0:00:38]} 1-0


[Site "https://www.chess.com"]

[Event "Titled Tuesday Blitz March 22 Late 2022"]
[White "Jary, Sergey"]
[Black "Bibasa, Bob"]
[WhiteFideId "14110350"]
[BlackFideId "10000240"]
[WhiteElo "2260"]
[BlackElo "2056"]
[Result "1-0"]
[Round "03"]
[TimeControl "180+1"]
[Date "2022.03.22"]
[WhiteClock "0:00:56"]
[BlackClock "0:00:03"]

1. e4 {[%clk 0:02:59]}  c5 {[%clk 0:02:59]} 2. Nf3 {[%clk 0:02:59]}  d6 {[%clk 0:02:59]} 3. d4 {[%clk 0:02:59]}  cxd4 {[%clk 0:03:00]} 4. Nxd4 {[%clk 0:02:59]}  Nf6 {[%clk 0:03:00]} 5. f3 {[%clk 0:03:00]}  e5 {[%clk 0:02:58]} 6. Bb5+ {[%clk 0:02:58]}  Bd7 {[%clk 0:02:47]} 7. Bxd7+ {[%clk 0:02:57]}  Qxd7 {[%clk 0:02:47]} 8. Nf5 {[%clk 0:02:58]}  g6 {[%clk 0:02:47]} 9. Bg5 {[%clk 0:02:54]}  gxf5 {[%clk 0:02:29]} 10. Bxf6 {[%clk 0:02:53]}  Rg8 {[%clk 0:02:29]} 11. O-O {[%clk 0:02:48]}  f4 {[%clk 0:02:26]} 12. Nc3 {[%clk 0:02:43]}  Rg6 {[%clk 0:02:20]} 13. Nd5 {[%clk 0:02:43]}  Na6 {[%clk 0:02:12]} 14. c4 {[%clk 0:02:38]}  Nc7 {[%clk 0:02:09]} 15. Bh4 {[%clk 0:02:38]}  Nxd5 {[%clk 0:02:07]} 16. Qxd5 {[%clk 0:02:39]}  Rc8 {[%clk 0:01:49]} 17. Kh1 {[%clk 0:02:31]}  Rc5 {[%clk 0:01:44]} 18. Qd3 {[%clk 0:02:31]}  Be7 {[%clk 0:01:39]} 19. b4 {[%clk 0:02:24]}  Rc6 {[%clk 0:01:31]} 20. Bf2 {[%clk 0:02:24]}  Qe6 {[%clk 0:01:25]} 21. Rac1 {[%clk 0:02:20]}  Rh6 {[%clk 0:01:17]} 22. a4 {[%clk 0:02:20]}  Qg6 {[%clk 0:01:09]} 23. b5 {[%clk 0:02:14]}  Qh5 {[%clk 0:01:05]} 24. h3 {[%clk 0:02:12]}  Rc8 {[%clk 0:01:01]} 25. Bxa7 {[%clk 0:02:05]}  Bh4 {[%clk 0:00:40]} 26. Bg1 {[%clk 0:02:04]}  Bg3 {[%clk 0:00:36]} 27. a5 {[%clk 0:02:00]}  Qg6 {[%clk 0:00:33]} 28. c5 {[%clk 0:01:53]}  Qe6 {[%clk 0:00:31]} 29. Qd2 {[%clk 0:01:36]}  dxc5 {[%clk 0:00:23]} 30. Rfd1 {[%clk 0:01:26]}  c4 {[%clk 0:00:16]} 31. b6 {[%clk 0:01:23]}  c3 {[%clk 0:00:16]} 32. Rxc3 {[%clk 0:01:19]}  Kf8 {[%clk 0:00:06]} 33. Rxc8+ {[%clk 0:01:18]}  Qxc8 {[%clk 0:00:07]} 34. Qd8+ {[%clk 0:01:18]}  Qxd8 {[%clk 0:00:06]} 35. Rxd8+ {[%clk 0:01:18]}  Ke7 {[%clk 0:00:07]} 36. Rb8 {[%clk 0:01:18]}  Kd7 {[%clk 0:00:07]} 37. Rxb7+ {[%clk 0:01:18]}  Kc6 {[%clk 0:00:07]} 38. Rxf7 {[%clk 0:01:17]}  Rg6 {[%clk 0:00:07]} 39. b7 {[%clk 0:01:16]}  Rg8 {[%clk 0:00:07]} 40. a6 {[%clk 0:01:16]}  Rd8 {[%clk 0:00:04]} 41. a7 {[%clk 0:01:02]}  Rd1 {[%clk 0:00:03]} 42. a8=Q {[%clk 0:00:59]}  Bf2 {[%clk 0:00:03]} 43. b8=Q+ {[%clk 0:00:59]}  Kc5 {[%clk 0:00:04]} 44. Rc7+ {[%clk 0:00:58]}  Kd6 {[%clk 0:00:04]} 45. Qb6+ {[%clk 0:00:57]}  Bxb6 {[%clk 0:00:03]} 46. Qc6# {[%clk 0:00:56]} 1-0


[Site "https://www.chess.com"]

[Event "Titled Tuesday Blitz March 22 Late 2022"]
[White "Kaasen, Tor Fredrik"]
[Black "Koutlas, Nikolaos"]
[WhiteFideId "1516647"]
[BlackFideId "25827138"]
[WhiteElo "2335"]
[BlackElo "1610"]
[Result "1-0"]
[Round "03"]
[TimeControl "180+1"]
[Date "2022.03.22"]
[WhiteClock "0:00:16"]
[BlackClock "0:00:02"]

1. e4 {[%clk 0:03:00]}  c5 {[%clk 0:02:59]} 2. Nf3 {[%clk 0:03:00]}  Nc6 {[%clk 0:03:00]} 3. d4 {[%clk 0:03:00]}  cxd4 {[%clk 0:03:01]} 4. Nxd4 {[%clk 0:03:00]}  e5 {[%clk 0:03:01]} 5. Nb5 {[%clk 0:03:00]}  d6 {[%clk 0:03:02]} 6. c4 {[%clk 0:02:57]}  g6 {[%clk 0:02:59]} 7. Be2 {[%clk 0:02:51]}  Nf6 {[%clk 0:02:54]} 8. N1c3 {[%clk 0:02:49]}  a6 {[%clk 0:02:52]} 9. Na3 {[%clk 0:02:49]}  Bg7 {[%clk 0:02:51]} 10. O-O {[%clk 0:02:43]}  O-O {[%clk 0:02:51]} 11. b3 {[%clk 0:02:36]}  Be6 {[%clk 0:02:42]} 12. Bb2 {[%clk 0:02:23]}  Nd4 {[%clk 0:02:35]} 13. Nc2 {[%clk 0:02:22]}  Nxc2 {[%clk 0:01:50]} 14. Qxc2 {[%clk 0:02:22]}  Rc8 {[%clk 0:01:51]} 15. a4 {[%clk 0:02:12]}  Nd7 {[%clk 0:01:40]} 16. Rfd1 {[%clk 0:02:11]}  Qc7 {[%clk 0:01:20]} 17. Nd5 {[%clk 0:01:47]}  Bxd5 {[%clk 0:01:20]} 18. Rxd5 {[%clk 0:01:48]}  Nf6 {[%clk 0:00:59]} 19. Rd2 {[%clk 0:01:48]}  b5 {[%clk 0:00:58]} 20. a5 {[%clk 0:01:37]}  Rfd8 {[%clk 0:00:50]} 21. Qb1 {[%clk 0:01:04]}  b4 {[%clk 0:00:22]} 22. Ra4 {[%clk 0:00:51]}  Rb8 {[%clk 0:00:21]} 23. Qd3 {[%clk 0:00:48]}  Bf8 {[%clk 0:00:17]} 24. Ra1 {[%clk 0:00:33]}  Nd7 {[%clk 0:00:16]} 25. Qe3 {[%clk 0:00:33]}  Nc5 {[%clk 0:00:16]} 26. f4 {[%clk 0:00:31]}  Bh6 {[%clk 0:00:16]} 27. Rf1 {[%clk 0:00:25]}  exf4 {[%clk 0:00:12]} 28. Qd4 {[%clk 0:00:25]}  Kf8 {[%clk 0:00:05]} 29. Qh8+ {[%clk 0:00:23]}  Ke7 {[%clk 0:00:05]} 30. Qf6+ {[%clk 0:00:16]}  Kf8 {[%clk 0:00:04]} 31. Bg4 {[%clk 0:00:15]}  Re8 {[%clk 0:00:02]} 32. Qh8+ {[%clk 0:00:15]}  Ke7 {[%clk 0:00:02]} 33. Bf6# {[%clk 0:00:16]} 1-0


[Site "https://www.chess.com"]

[Event "Titled Tuesday Blitz March 22 Late 2022"]
[White "Kosteniuk, Alexandra"]
[Black "Sarana, Alexey"]
[WhiteFideId "4128125"]
[BlackFideId "24133795"]
[WhiteElo "2469"]
[BlackElo "2666"]
[Result "0-1"]
[Round "03"]
[TimeControl "180+1"]
[Date "2022.03.22"]
[WhiteClock "0:00:09"]
[BlackClock "0:00:12"]

1. e4 {[%clk 0:03:00]}  c5 {[%clk 0:02:55]} 2. c3 {[%clk 0:03:01]}  d5 {[%clk 0:02:54]} 3. exd5 {[%clk 0:03:01]}  Qxd5 {[%clk 0:02:55]} 4. d4 {[%clk 0:03:02]}  Nc6 {[%clk 0:02:55]} 5. Nf3 {[%clk 0:03:02]}  Bf5 {[%clk 0:02:56]} 6. Na3 {[%clk 0:02:57]}  Nf6 {[%clk 0:02:37]} 7. Nb5 {[%clk 0:02:45]}  Rc8 {[%clk 0:02:36]} 8. Be3 {[%clk 0:02:38]}  a6 {[%clk 0:02:08]} 9. c4 {[%clk 0:02:36]}  Qd7 {[%clk 0:02:08]} 10. Nc3 {[%clk 0:02:32]}  e6 {[%clk 0:01:56]} 11. Be2 {[%clk 0:02:21]}  cxd4 {[%clk 0:01:51]} 12. Nxd4 {[%clk 0:02:20]}  Nxd4 {[%clk 0:01:52]} 13. Qxd4 {[%clk 0:02:15]}  Qxd4 {[%clk 0:01:47]} 14. Bxd4 {[%clk 0:02:16]}  Bd6 {[%clk 0:01:46]} 15. O-O {[%clk 0:02:05]}  Ke7 {[%clk 0:01:46]} 16. Rfd1 {[%clk 0:02:01]}  Rhd8 {[%clk 0:01:47]} 17. Bb6 {[%clk 0:01:56]}  Rd7 {[%clk 0:01:46]} 18. h3 {[%clk 0:01:53]}  Rc6 {[%clk 0:01:29]} 19. Be3 {[%clk 0:01:52]}  h6 {[%clk 0:01:22]} 20. g4 {[%clk 0:01:01]}  Bh7 {[%clk 0:01:19]} 21. Rac1 {[%clk 0:00:57]}  Rcc7 {[%clk 0:01:02]} 22. Na4 {[%clk 0:00:55]}  Ne4 {[%clk 0:00:57]} 23. c5 {[%clk 0:00:41]}  Be5 {[%clk 0:00:56]} 24. b4 {[%clk 0:00:33]}  Rxd1+ {[%clk 0:00:36]} 25. Bxd1 {[%clk 0:00:30]}  Ng5 {[%clk 0:00:22]} 26. Kg2 {[%clk 0:00:28]}  Be4+ {[%clk 0:00:21]} 27. f3 {[%clk 0:00:29]}  Bc6 {[%clk 0:00:21]} 28. Nb6 {[%clk 0:00:27]}  f5 {[%clk 0:00:19]} 29. h4 {[%clk 0:00:24]}  Nh7 {[%clk 0:00:16]} 30. gxf5 {[%clk 0:00:21]}  exf5 {[%clk 0:00:17]} 31. Bb3 {[%clk 0:00:20]}  Kf6 {[%clk 0:00:12]} 32. Kf2 {[%clk 0:00:18]}  f4 {[%clk 0:00:12]} 33. Bd2 {[%clk 0:00:17]}  Nf8 {[%clk 0:00:12]} 34. Bc3 {[%clk 0:00:15]}  Ng6 {[%clk 0:00:12]} 35. h5 {[%clk 0:00:10]}  Bxc3 {[%clk 0:00:13]} 36. Rxc3 {[%clk 0:00:11]}  Ne5 {[%clk 0:00:13]} 37. a4 {[%clk 0:00:11]}  Kg5 {[%clk 0:00:12]} 38. Bd1 {[%clk 0:00:08]}  Kxh5 {[%clk 0:00:12]} 39. Be2 {[%clk 0:00:09]}  Kg5 {[%clk 0:00:11]} 40. b5 {[%clk 0:00:09]}  axb5 {[%clk 0:00:12]} 41. axb5 {[%clk 0:00:10]}  Be8 {[%clk 0:00:12]} 42. Nd5 {[%clk 0:00:08]}  Rd7 {[%clk 0:00:12]} 43. Nb6 {[%clk 0:00:08]}  Rd2 {[%clk 0:00:12]} 44. Ke1 {[%clk 0:00:09]}  Rb2 {[%clk 0:00:12]} 0-1


[Site "https://www.chess.com"]

[Event "Titled Tuesday Blitz March 22 Late 2022"]
[White "Kozin, Yuri"]
[Black "Abdrlauf, Elham"]
[WhiteFideId "4129920"]
[BlackFideId "1533533"]
[WhiteElo "2531"]
[BlackElo "2334"]
[Result "1-0"]
[Round "03"]
[TimeControl "180+1"]
[Date "2022.03.22"]
[WhiteClock "0:00:22"]
[BlackClock "0:00:03"]

1. e4 {[%clk 0:03:00]}  c6 {[%clk 0:02:55]} 2. d4 {[%clk 0:03:00]}  d5 {[%clk 0:02:55]} 3. exd5 {[%clk 0:03:01]}  cxd5 {[%clk 0:02:56]} 4. c4 {[%clk 0:03:02]}  Nf6 {[%clk 0:02:56]} 5. Nc3 {[%clk 0:03:02]}  g6 {[%clk 0:02:57]} 6. cxd5 {[%clk 0:03:02]}  Nxd5 {[%clk 0:02:58]} 7. Bc4 {[%clk 0:03:02]}  Nxc3 {[%clk 0:02:57]} 8. Qb3 {[%clk 0:03:02]}  e6 {[%clk 0:02:58]} 9. bxc3 {[%clk 0:03:01]}  Bg7 {[%clk 0:02:58]} 10. Ba3 {[%clk 0:03:01]}  Bf8 {[%clk 0:02:58]} 11. Bc1 {[%clk 0:03:02]}  Nc6 {[%clk 0:02:59]} 12. Bb5 {[%clk 0:03:00]}  Bd7 {[%clk 0:02:58]} 13. Nf3 {[%clk 0:02:57]}  Bg7 {[%clk 0:02:56]} 14. Ba3 {[%clk 0:02:57]}  Bf8 {[%clk 0:02:56]} 15. Bc1 {[%clk 0:02:57]}  Be7 {[%clk 0:02:40]} 16. Bh6 {[%clk 0:02:56]}  a6 {[%clk 0:02:30]} 17. Be2 {[%clk 0:02:45]}  b5 {[%clk 0:02:15]} 18. O-O {[%clk 0:02:40]}  Bf8 {[%clk 0:02:11]} 19. Bg5 {[%clk 0:02:37]}  Be7 {[%clk 0:02:11]} 20. Bh6 {[%clk 0:02:37]}  Bf8 {[%clk 0:01:38]} 21. Bg5 {[%clk 0:02:36]}  f6 {[%clk 0:01:39]} 22. Bh4 {[%clk 0:02:25]}  Bg7 {[%clk 0:01:25]} 23. Ne5 {[%clk 0:02:07]}  Qe7 {[%clk 0:00:24]} 24. Bf3 {[%clk 0:02:00]}  Rc8 {[%clk 0:00:21]} 25. Nxd7 {[%clk 0:01:53]}  Qxd7 {[%clk 0:00:21]} 26. d5 {[%clk 0:01:49]}  Ne5 {[%clk 0:00:13]} 27. dxe6 {[%clk 0:01:42]}  Nxf3+ {[%clk 0:00:13]} 28. gxf3 {[%clk 0:01:43]}  Qc6 {[%clk 0:00:01]} 29. Rad1 {[%clk 0:01:27]}  Qc4 {[%clk 0:00:02]} 30. Qa3 {[%clk 0:01:16]}  Bf8 {[%clk 0:00:02]} 31. Qxa6 {[%clk 0:01:14]}  Be7 {[%clk 0:00:01]} 32. Rd4 {[%clk 0:01:08]}  Qc6 {[%clk 0:00:01]} 33. Qa7 {[%clk 0:01:02]}  Qxe6 {[%clk 0:00:01]} 34. Re4 {[%clk 0:00:59]}  Qd7 {[%clk 0:00:02]} 35. Qxd7+ {[%clk 0:00:52]}  Kxd7 {[%clk 0:00:03]} 36. Rd1+ {[%clk 0:00:53]}  Bd6 {[%clk 0:00:02]} 37. Red4 {[%clk 0:00:52]}  Rc6 {[%clk 0:00:03]} 38. Bg3 {[%clk 0:00:52]}  Rhc8 {[%clk 0:00:02]} 39. Rxd6+ {[%clk 0:00:51]}  Ke7 {[%clk 0:00:03]} 40. Rd7+ {[%clk 0:00:49]}  Ke6 {[%clk 0:00:02]} 41. Rxh7 {[%clk 0:00:46]}  g5 {[%clk 0:00:02]} 42. Rhd7 {[%clk 0:00:41]}  Rxc3 {[%clk 0:00:02]} 43. R7d6+ {[%clk 0:00:41]}  Kf5 {[%clk 0:00:03]} 44. R6d5+ {[%clk 0:00:39]}  Kg6 {[%clk 0:00:04]} 45. Rxb5 {[%clk 0:00:39]}  Rxf3 {[%clk 0:00:04]} 46. Kg2 {[%clk 0:00:39]}  Ra3 {[%clk 0:00:04]} 47. Rd2 {[%clk 0:00:37]}  Rca8 {[%clk 0:00:04]} 48. Rb6 {[%clk 0:00:32]}  R8a5 {[%clk 0:00:04]} 49. Rdd6 {[%clk 0:00:30]}  Rf5 {[%clk 0:00:05]} 50. Rb2 {[%clk 0:00:30]}  Rfa5 {[%clk 0:00:02]} 51. Rdd2 {[%clk 0:00:29]}  Kh5 {[%clk 0:00:02]} 52. Rb6 {[%clk 0:00:28]}  f5 {[%clk 0:00:02]} 53. Rdd6 {[%clk 0:00:22]}  f4 {[%clk 0:00:03]} 54. h3 {[%clk 0:00:23]}  g4 {[%clk 0:00:01]} 55. Rh6+ {[%clk 0:00:23]}  Kg5 {[%clk 0:00:01]} 56. Rbg6+ {[%clk 0:00:23]}  Kf5 {[%clk 0:00:02]} 57. hxg4+ {[%clk 0:00:23]}  Ke4 {[%clk 0:00:03]} 58. Re6+ {[%clk 0:00:23]}  Kd4 {[%clk 0:00:02]} 59. Bxf4 {[%clk 0:00:22]}  Rxa2 {[%clk 0:00:02]} 60. Be3+ {[%clk 0:00:23]}  Kd3 {[%clk 0:00:02]} 61. Rd6+ {[%clk 0:00:22]}  Ke2 {[%clk 0:00:03]} 62. Rhe6 {[%clk 0:00:22]} 1-0


[Site "https://www.chess.com"]

[Event "Titled Tuesday Blitz March 22 Late 2022"]
[White "Krishnan, Varun"]
[Black "Shimanov, Aleksandr"]
[WhiteFideId "5054508"]
[BlackFideId "4198603"]
[WhiteElo "2607"]
[BlackElo "2636"]
[Result "0-1"]
[Round "03"]
[TimeControl "180+1"]
[Date "2022.03.22"]
[WhiteClock "0:00:22"]
[BlackClock "0:01:45"]

1. e4 {[%clk 0:03:00]}  d5 {[%clk 0:02:58]} 2. exd5 {[%clk 0:03:00]}  Qxd5 {[%clk 0:02:59]} 3. Nc3 {[%clk 0:02:59]}  Qe5+ {[%clk 0:02:59]} 4. Be2 {[%clk 0:02:59]}  Bg4 {[%clk 0:03:00]} 5. d4 {[%clk 0:02:55]}  Bxe2 {[%clk 0:03:00]} 6. Ngxe2 {[%clk 0:02:55]}  Qa5 {[%clk 0:03:01]} 7. O-O {[%clk 0:02:54]}  Nf6 {[%clk 0:03:01]} 8. h3 {[%clk 0:02:47]}  Nc6 {[%clk 0:03:01]} 9. Be3 {[%clk 0:02:38]}  O-O-O {[%clk 0:03:01]} 10. Nc1 {[%clk 0:02:33]}  e6 {[%clk 0:02:59]} 11. Nb3 {[%clk 0:02:32]}  Qf5 {[%clk 0:02:59]} 12. Qe2 {[%clk 0:02:20]}  h5 {[%clk 0:02:58]} 13. Rfd1 {[%clk 0:02:17]}  g5 {[%clk 0:02:57]} 14. a3 {[%clk 0:02:05]}  Rg8 {[%clk 0:02:51]} 15. Qd3 {[%clk 0:02:05]}  Ne7 {[%clk 0:02:33]} 16. a4 {[%clk 0:01:37]}  h4 {[%clk 0:02:29]} 17. a5 {[%clk 0:01:35]}  a6 {[%clk 0:02:29]} 18. Nc5 {[%clk 0:01:28]}  g4 {[%clk 0:02:26]} 19. Qxf5 {[%clk 0:01:25]}  Nxf5 {[%clk 0:02:27]} 20. hxg4 {[%clk 0:01:21]}  Nxg4 {[%clk 0:02:27]} 21. Rd3 {[%clk 0:00:57]}  Nfxe3 {[%clk 0:02:22]} 22. fxe3 {[%clk 0:00:57]}  Bxc5 {[%clk 0:02:22]} 23. dxc5 {[%clk 0:00:56]}  Rxd3 {[%clk 0:02:22]} 24. cxd3 {[%clk 0:00:56]}  Nxe3 {[%clk 0:02:23]} 25. Kf2 {[%clk 0:00:55]}  Nxg2 {[%clk 0:02:23]} 26. Ne4 {[%clk 0:00:52]}  Nf4 {[%clk 0:02:20]} 27. Rh1 {[%clk 0:00:46]}  Nxd3+ {[%clk 0:02:15]} 28. Ke3 {[%clk 0:00:46]}  Nxb2 {[%clk 0:02:15]} 29. Rxh4 {[%clk 0:00:45]}  Nc4+ {[%clk 0:02:13]} 30. Kd4 {[%clk 0:00:44]}  Nxa5 {[%clk 0:02:14]} 31. Rh7 {[%clk 0:00:44]}  f5 {[%clk 0:02:12]} 32. Nf6 {[%clk 0:00:40]}  Rf8 {[%clk 0:02:12]} 33. Ke5 {[%clk 0:00:39]}  Nc6+ {[%clk 0:02:02]} 34. Kxe6 {[%clk 0:00:37]}  f4 {[%clk 0:02:02]} 35. Rh4 {[%clk 0:00:27]}  f3 {[%clk 0:01:56]} 36. Rf4 {[%clk 0:00:27]}  a5 {[%clk 0:01:55]} 37. Kd5 {[%clk 0:00:21]}  Ne7+ {[%clk 0:01:52]} 38. Ke6 {[%clk 0:00:20]}  Ng8 {[%clk 0:01:46]} 39. Rxf3 {[%clk 0:00:20]}  Rxf6+ {[%clk 0:01:45]} 40. Rxf6 {[%clk 0:00:19]}  Nxf6 {[%clk 0:01:46]} 41. Kxf6 {[%clk 0:00:19]}  a4 {[%clk 0:01:46]} 42. Ke7 {[%clk 0:00:19]}  a3 {[%clk 0:01:46]} 43. Kf8 {[%clk 0:00:18]}  a2 {[%clk 0:01:45]} 44. Kg7 {[%clk 0:00:19]}  a1=Q+ {[%clk 0:01:45]} 45. Kg8 {[%clk 0:00:20]}  Qd4 {[%clk 0:01:45]} 46. Kf8 {[%clk 0:00:21]}  Qxc5+ {[%clk 0:01:45]} 47. Kf7 {[%clk 0:00:22]} 0-1


[Site "https://www.chess.com"]

[Event "Titled Tuesday Blitz March 22 Late 2022"]
[White "Kujawski, Adam"]
[Black "Necula, Iulian"]
[WhiteFideId "1100920"]
[BlackFideId "1232380"]
[WhiteElo "2053"]
[BlackElo "1776"]
[Result "1-0"]
[Round "03"]
[TimeControl "180+1"]
[Date "2022.03.22"]
[WhiteClock "0:00:07"]
[BlackClock "0:00:37"]

1. e4 {[%clk 0:03:00]}  g6 {[%clk 0:03:00]} 2. d4 {[%clk 0:03:00]}  c6 {[%clk 0:03:01]} 3. Nc3 {[%clk 0:03:00]}  d5 {[%clk 0:03:01]} 4. h3 {[%clk 0:03:00]}  dxe4 {[%clk 0:03:01]} 5. Nxe4 {[%clk 0:02:59]}  Nf6 {[%clk 0:03:01]} 6. Nxf6+ {[%clk 0:02:59]}  exf6 {[%clk 0:03:02]} 7. Nf3 {[%clk 0:02:59]}  Bg7 {[%clk 0:03:03]} 8. Bc4 {[%clk 0:02:54]}  O-O {[%clk 0:03:04]} 9. O-O {[%clk 0:02:54]}  Be6 {[%clk 0:03:03]} 10. Bxe6 {[%clk 0:02:54]}  fxe6 {[%clk 0:03:04]} 11. Re1 {[%clk 0:02:54]}  Re8 {[%clk 0:03:04]} 12. c4 {[%clk 0:02:54]}  Nd7 {[%clk 0:03:04]} 13. Be3 {[%clk 0:02:53]}  Qc7 {[%clk 0:02:52]} 14. Qc2 {[%clk 0:02:50]}  e5 {[%clk 0:02:49]} 15. Rad1 {[%clk 0:02:45]}  e4 {[%clk 0:02:47]} 16. Nh2 {[%clk 0:02:17]}  f5 {[%clk 0:02:47]} 17. g3 {[%clk 0:02:16]}  Rad8 {[%clk 0:02:37]} 18. Nf1 {[%clk 0:02:01]}  Nf6 {[%clk 0:02:37]} 19. Bf4 {[%clk 0:01:57]}  Qb6 {[%clk 0:02:28]} 20. Be5 {[%clk 0:01:55]}  Rd7 {[%clk 0:02:16]} 21. Ne3 {[%clk 0:01:52]}  Red8 {[%clk 0:02:14]} 22. c5 {[%clk 0:01:19]}  Qa6 {[%clk 0:02:14]} 23. Qb3+ {[%clk 0:01:17]}  Nd5 {[%clk 0:02:08]} 24. Bd6 {[%clk 0:01:12]}  Kh8 {[%clk 0:02:01]} 25. Nxd5 {[%clk 0:01:11]}  cxd5 {[%clk 0:02:01]} 26. Qxd5 {[%clk 0:01:05]}  Rxd6 {[%clk 0:01:40]} 27. cxd6 {[%clk 0:01:02]}  Rxd6 {[%clk 0:01:41]} 28. Qf7 {[%clk 0:00:56]}  Rf6 {[%clk 0:01:37]} 29. Qe8+ {[%clk 0:00:53]}  Rf8 {[%clk 0:01:37]} 30. Qe7 {[%clk 0:00:50]}  Kg8 {[%clk 0:00:56]} 31. d5 {[%clk 0:00:47]}  Rf7 {[%clk 0:00:56]} 32. Qe8+ {[%clk 0:00:30]}  Rf8 {[%clk 0:00:56]} 33. Qe6+ {[%clk 0:00:24]}  Rf7 {[%clk 0:00:55]} 34. d6 {[%clk 0:00:13]}  Bf8 {[%clk 0:00:48]} 35. Re3 {[%clk 0:00:06]}  Kg7 {[%clk 0:00:48]} 36. Rc3 {[%clk 0:00:05]}  Rf6 {[%clk 0:00:47]} 37. Rc7+ {[%clk 0:00:04]}  Kh6 {[%clk 0:00:43]} 38. Qxf6 {[%clk 0:00:05]}  Qe2 {[%clk 0:00:40]} 39. Qxf8+ {[%clk 0:00:04]}  Kg5 {[%clk 0:00:40]} 40. Rf1 {[%clk 0:00:05]}  e3 {[%clk 0:00:39]} 41. Qe7+ {[%clk 0:00:06]}  Kh6 {[%clk 0:00:38]} 42. Qxe3+ {[%clk 0:00:05]}  Qxe3 {[%clk 0:00:38]} 43. fxe3 {[%clk 0:00:06]}  g5 {[%clk 0:00:38]} 44. d7 {[%clk 0:00:06]}  g4 {[%clk 0:00:37]} 45. hxg4 {[%clk 0:00:07]}  fxg4 {[%clk 0:00:38]} 46. d8=Q {[%clk 0:00:07]}  Kh5 {[%clk 0:00:38]} 47. Qd6 {[%clk 0:00:07]}  h6 {[%clk 0:00:37]} 48. Rc5# {[%clk 0:00:07]} 1-0


[Site "https://www.chess.com"]